Cogmind - Beta 9.1 @@@ ROGUE MODE // 2019.11.01 @ 21:54:02 Player: moep Result: Destroyed by S-10 Pest with Light Assault Rifle Performance ------------- Evolutions (0) 0 Regions Visited (1) 200 Robots Destroyed (3) 15 Value Destroyed (115) 115 Prototype IDs (0) 0 Alien Tech Used (0) 0 Bonus (0) 0 TOTAL SCORE: 330 Bonus ------- None Cogmind --------- Core Integrity 0/250 Matter 300/300 Energy 100/100 System Corruption 2% Temperature Cool (0) Location -10/Materials Parts ------- Power (1) Propulsion (2) Utility (2) High-capacity Storage Unit Structural Scanner Weapon (2) Inventory (12) ECM Suite Peak State ------------ Power (None) Propulsion Wheel Wheel Utility Structural Scanner ECM Suite Weapon Small Laser Assault Rifle Inventory (Empty) [Rating: 6] Favorites ----------- Power None Propulsion Wheel Wheel Wheel Utility Structural Scanner Device Structural Scanner Storage High-capacity Storage Unit Weapon Small Laser Energy Gun Small Laser Ballistic Gun Assault Rifle Build | -11 -10 ------- Run | Scr Mat Slots Evolved . | . . Power . | . . Propulsion . | . . Utility . | . . Weapon . | . . Parts Attached 7 | 4 3 Power . | . . Engine . | . . Core . | . . Reactor . | . . Propulsion 2 | 2 . Treads . | . . Leg . | . . Wheel 2 | 2 . Hover . | . . Flight . | . . Utility 3 | . 3 Device 2 | . 2 Storage 1 | . 1 Processor . | . . Hackware . | . . Protection . | . . Artifact . | . . Weapon 2 | 2 . Energy Gun 1 | 1 . Energy Cannon . | . . Ballistic Gun 1 | 1 . Ballistic Cannon . | . . Launcher . | . . Special Weapon . | . . Impact Weapon . | . . Slashing Weapon . | . . Piercing Weapon . | . . Special Melee Weapon . | . . Unidentified Prototypes . | . . Parts Lost 4 | . 4 Power . | . . Propulsion 2 | . 2 Utility . | . . Weapon 2 | . 2 Highest Loss Streak 3 | . 3 Average Slot Usage (%) 60 | . 60 Wheel 16 | . 16 Device 13 | . 13 Storage 6 | . 6 Energy Gun 12 | . 12 Ballistic Gun 12 | . 12 Naked Turns . | . . Heaviest Build 36 | 3 36 Greatest Support 20 | 20 20 Greatest Overweight (x) 10 | . 10 Average Overweight (x) . | . 1 Largest Inventory Capacity 12 | 4 12 Average Capacity 6 | 4 7 Most Carried 2 | . 2 Average Carried . | . . Final Capacity 12 | 4 12 Final Carried 1 | . 1 Class Distribution -------------------- 100% | Mutant Dominant Class ---------------- Mutant | -10/Materials Resources | -11 -10 ----------- Run | Scr Mat Matter Collected 312 | 255 57 Remotely . | . . Salvage Created 126 | 47 79 Parts 3 | . 3 Haulers Intercepted . | . . Recyclers Shooed . | . . Parts Field Recycled . | . . Retrieved Matter . | . . Parts Self-Destructed . | . . Prevented . | . . Kills | -11 -10 ------- Run | Scr Mat Combat Hostiles Destroyed 3 | 1 2 Guns 3 | 1 2 Classes Destroyed 1 | 1 . Grunt 3 | 1 2 Best Kill Streak 1 | 1 1 Combat Bots Only 1 | 1 1 Max Kills in Single Turn 1 | 1 1 Gunslinging . | . . Exploded . | . . Melee . | . . Uniques/NPCs Destroyed . | . . Combat | -11 -10 -------- Run | Scr Mat Damage Taken 540 | 65 475 Core 254 | 12 242 Absorbed by Shields . | . . Core Remaining (%) 95 | 95 . Volleys Fired 19 | 5 14 Largest 2 | 2 2 Hottest 60 | 60 60 Shots Fired 37 | 10 27 Gun 37 | 10 27 Cannon . | . . Launcher . | . . Special . | . . Kinetic 19 | 5 14 Thermal 18 | 5 13 Explosive . | . . Electromagnetic . | . . Robot Hit Streak 7 | 5 7 Robot Miss Streak 3 | 1 3 Penetration Max . | . . Secondary Targets . | . . Shots Hit Robots 25 | 8 17 Core Hits 7 | 2 5 Critical Hits . | . . Critical Kills . | . . Critical Parts Destroyed . | . . Melee Attacks . | . . Impact . | . . Slashing . | . . Piercing . | . . Sneak Attacks . | . . Combat Hostiles . | . . Follow-up Attacks . | . . Damage Inflicted 240 | 65 175 Guns 240 | 65 175 Cannons . | . . Explosions . | . . Melee . | . . Ramming . | . . Kinetic 110 | 22 88 Thermal 130 | 43 87 Explosive . | . . Electromagnetic . | . . Impact . | . . Slashing . | . . Piercing . | . . Highest Corruption 2 | . 2 Average Corruption 2 | . 2 Corruption Purged . | . . Effects 1 | . 1 Data Loss (minor) 1 | . 1 Overload Shots . | . . Overflow Damage . | . . Projectiles . | . . Explosions . | . . Melee . | . . Knockbacks . | . . Impact . | . . Kinetic . | . . Secondary . | . . Self-Inflicted Damage . | . . Shots . | . . Rammed 2 | . 2 Targets Rammed 2 | . 2 Kicked . | . . Crushed . | . . Highest Temperature 4 | 1 4 Average Temperature 1 | 1 2 Received Heat Transfer 108 | 36 72 Siege Activations . | . . Robots Corrupted . | . . Combat Hostiles . | . . Parts Fried . | . . Impact Corruptions . | . . Robots Melted . | . . Combat Hostiles . | . . Parts Melted . | . . Heat Transferred 300 | 100 200 Parts Sabotaged . | . . Parts Stolen . | . . Parts Stripped . | . . Power Chain Reactions . | . . Missiles Intercepted . | . . Alert | -11 -10 ------- Run | Scr Mat Peak Influence 55 | 20 55 Average Influence 26 | 4 35 Maximum Alert Level . | . . Low Security (%) 100 | . . Level 1 . | . . Level 2 . | . . Level 3 . | . . Level 4 . | . . Level 5 . | . . High Security . | . . Max Security . | . . Squads Dispatched . | . . Investigation . | . . Extermination . | . . Reinforcement . | . . Assault . | . . Garrison . | . . Intercept . | . . Construction Impeded . | . . Haulers Reinforced . | . . Stealth | -11 -10 --------- Run | Scr Mat Distress Signals . | . . Communications Jammed . | . . Distress Signals . | . . Times Spotted 6 | 1 5 Peak Tracking Total 3 | 1 3 Tactical Retreats . | . . Traps | -11 -10 ------- Run | Scr Mat Traps Triggered 1 | . 1 Indirectly . | . . Trap Hack Attempts . | . . Triggered . | . . Disarmed . | . . Reprogrammed . | . . Reused . | . . Traps Extracted . | . . Installed . | . . Triggered . | . . Machines | -11 -10 ---------- Run | Scr Mat Machines Disabled . | . . Max in Single Turn . | . . Machines Sabotaged . | . . Garrisons Compromised . | . . Overloaded Fab Kills . | . . Fab Network Shutdowns . | . . Hacking | -11 -10 --------- Run | Scr Mat Machines Accessed 1 | . 1 Terminals . | . . Fabricators . | . . Repair Stations 1 | . 1 Recycling Units . | . . Scanalyzers . | . . Garrison Access . | . . Total Hacks 1 | . 1 Successful 1 | . 1 Failed . | . . Catastrophic . | . . Database Lockouts . | . . Manual . | . . Terminals . | . . Fabricators . | . . Repair Stations 1 | . 1 Recycling Units . | . . Scanalyzers . | . . Garrison Access . | . . Terminal Hacks . | . . Fabricator Hacks . | . . Repair Station Hacks 1 | . 1 Scan Component 1 | . 1 Recycling Unit Hacks . | . . Scanalyzer . | . . Garrison Access Hacks . | . . Unauthorized Hacks . | . . Terminals . | . . Fabricators . | . . Repair Stations . | . . Recycling Units . | . . Scanalyzers . | . . Garrison Access . | . . Data Cores Recovered . | . . Used . | . . Hacking Detections . | . . Full Trace Events . | . . Feedback Events . | . . Feedback Blocked . | . . Robot Schematics Acquired . | . . Robots Built . | . . Matter . | . . Time . | . . Total Robot Build Rating . | . . Part Schematics Acquired . | . . Parts Built . | . . Matter . | . . Time . | . . Total Part Build Rating . | . . Parts Repaired . | . . Time . | . . Parts Recycled . | . . Recycled Matter . | . . Retrieved Matter . | . . Retrieved Components . | . . Parts Scanalyzed . | . . Part Schematics Acquired . | . . Parts Damaged . | . . Bothacking | -11 -10 ------------ Run | Scr Mat Used RIF Installer . | . . Robots Hacked . | . . Non-combat . | . . Combat . | . . Robot Hacks Applied . | . . Relay Couplers Released . | . . Robots Rewired . | . . Allies Hacked . | . . Hacks Repelled . | . . Allies | -11 -10 -------- Run | Scr Mat Total Allies . | . . Largest Group . | . . Highest-Rated Group . | . . Highest-Rated Ally . | . . Total Orders . | . . Ally Attacks . | . . Total Damage . | . . Kills . | . . Allies Corrupted . | . . Allies Melted . | . . Intel | -11 -10 ------- Run | Scr Mat Robot Analysis Total . | . . Derelict Logs Recovered . | . . Drone Launches . | . . Drone Recoveries . | . . Exploration | -11 -10 ------------- Run | Scr Mat Turns Passed 299 | 92 207 Spaces Moved 215 | 86 129 Core 18 | 16 2 Treads . | . . Legs . | . . Wheels 197 | 70 127 Hover . | . . Flight . | . . Fastest Speed 50 | 50 80 Average Speed 88 | 74 97 Slowest Speed 550 | 80 550 Overloaded Moves . | . . Propulsion Burnouts . | . . Robots Hopped . | . . Cave-ins Triggered . | . . Exploration Rate (%) 13 | 7 20 Regions Visited 1 Branch Regions . Pre-discovered Areas . | . . Known Exits Taken . | . . Unknown Exits Taken 1 | 1 . Scrap Searched . | . . Spaces Dug . | . . Terrain Destroyed . | . . Melee . | . . Projectile . | . . AOE . | . . Actions | -11 -10 --------- Run | Scr Mat Total 277 | 101 176 Wait 32 | 7 25 Move 214 | 85 129 Hop . | . . Pick Up 1 | . 1 Fast Attach 7 | 4 3 Attach . | . . Detach 1 | . 1 Swap . | . . Drop 1 | . 1 Fire 19 | 5 14 Melee . | . . Ram 2 | . 2 Kick . | . . Crush . | . . Escape Stasis . | . . Rewire . | . . Trap . | . . Miscellaneous . | . . Route ------- -11/Scrapyard -10/Materials History --------- Turn | Location | Event 2 | -11/Scrapyard | Met Revision 17 43 | -11/Scrapyard | Discovered new exit (range 8) 93 | -11/Scrapyard | Entered Materials 287 | -10/Materials | Core integrity fell below 50% 296 | -10/Materials | Core integrity fell below 20% 300 | -10/Materials | Destroyed by S-10 Pest with Light Assault Rifle Last Messages --------------- 00194_ Dropped Heat Sink. 00195_ Acquired 6 matter. 00197_ Triggered Shock Trap. 00197_ The floor emits a surge of raw power. 00197_ System corrupted (+2). 00212_ Acquired Hcp. Storage Unit. 00256_ Connecting with Repair Station... 00256_ Current location identified: Materials >>Scan(Assault Rifle) Scanning Assault Rifle... Ready to Repair: Assault Rifle Rating: 1 Time: 26 00270_ Sml. Laser destroyed. 00273_ Assault Rifle destroyed. 00274_ Acquired 12 matter. 00281_ Wheel destroyed. 00292_ System corrupted: Component data lost. 00292_ Slammed into S-10 Pest. Map ----- +----------------------------------------------------+ | ???????????????????????????????????? | | ???????????????????????????????????? | | ???????????????????????????????????? | | ???????????????????????????????????? | | ??????????????????????????? ?????? | | ?????????????????????????? ?????? | | ?????????????????????????? ?????? | | ?????????????????????????? ?????? | | ?????????????????????????? ?????? | | ??????????????????????????? ?????? | | ??????????????????????????? ?????? | | ??????????????????????????? #????? | | ??????????????????????????? #????? | | ???????????????????????????? #????? | | ???????????????????????????? #????? | | ???????????????????????????? #????? | | ???????????????????????????? #????? | | ????????????????????????????# #????? | | ?????????????????????########+##???? | | ?????????????????????# ####? | | ?????????????????????# % """#? | | ?????????????????????# R"#? | | ?????????????????????# """#? | | ?????????? # s """" ####? | | ?????????? + ss"""" #???? | | ?????????? #### t@""""u#???? | | ??????????????# ????# / % #???? | | ?????????????## ???#####m#####???? | | ?????????????# ##### #?????? | | ?????????????# #?????? | | ?????????????+ T #?????? | | ?????????????# #?????? | | ?????????????# ##### #?????? | | ?????????????#####?????## ######## | | ????????????????????????# # # | | ????????????????######### + """ # | | ????????????????# # # """ # | | ????????????????#""" # # """ # | | ????????????????#""" # # # | | ????????????????#""" # # !!# | | ????????????????# + # !! # | | ????????????????######+## ^^# !! # | | ?????????????????# # ### # # | | ?????????????????# ####* # """ # | | ?????????????????# #% # """ # | | ?????????????????# = ! # """ # | | ?????????????????# # # # | | ?????????????????######## ######## | | ????????????????????????# ######## | | ????????????????????????# # # | +----------------------------------------------------+ Best States ------------- Heat Dissipation 25 Energy Generation 5 Energy Capacity 100 Matter Stores 300 Matter Capacity 300 Sight Range 16 Terrain Scan Density 10 ECM Strength 1 Evasion (%) 50 Item Schematics ----------------- None Robot Schematics ------------------ None Fabricated ------------ Nothing Alien Tech Used ----------------- None Achievements -------------- None Challenges ------------ None Game ------ Seed MiniPoweredKinecellerator Manual? 0 Play Time 00:06:22 Cumulative 1.9 hours Start 2019.11.01 @ 21:12:00 End 2019.11.01 @ 21:54:02 Sessions 2 Manual Loads 0 Difficulty Rogue Special Mode None Game No. 8 Rogue 8 Adventurer 0 Explorer 0 Win Type - Total 0 Types 0/0/0/0/0/0/0 Lore% 1 Gallery% 5 Achievement% 1 Wizard Run 0 Options --------- ASCII 0 Keyboard 1 Movement Vi Keybinds 0 Fullscreen 1 Font 24/Proggy Map View 76x50 Tactical HUD 1 Map Filters NONE Filters NONE Steam 1 RUN: fe1ea598-ac47-4a14-a869-6b194fc3f830